fUST/lending_fUST_20240508
["ID","MTS","AMOUNT","RATE_DAILY","PERIOD"]
[326594598,1715122243756,-153.0,0.000157,2]
[326594600,1715122243767,-306.0,0.000157,2]
[326594602,1715122243776,-1053.82,0.00015756,2]
[326594604,1715122243785,-500.0,0.00015756,2]
[326594606,1715122243796,-3848.25,0.00015756,2]
[326594608,1715122243810,-500.0,0.00015756,2]
[326594610,1715122243820,-500.0,0.00015756,2]
[326594612,1715122243830,-500.0,0.00015756,2]
[326594614,1715122243842,-4425.48,0.00015756,2]
[326594616,1715122243851,-372.458745,0.00015761,2]
[326594618,1715122243861,-372.458745,0.00015761,2]
[326594620,1715122243871,-151.0,0.00015761,2]
[326594622,1715122243882,-1302.61854919,0.00015761,2]
[326594765,1715122245672,-500.0,0.00015208,2]
[326594767,1715122245682,-4252.27944974,0.00015761,2]
[326594769,1715122245694,-20468.04782495,0.00015761,2]
[326596538,1715123317507,6804.7326688,0.00014232,2]
[326596540,1715123434272,-701.3012313,0.00015204,2]
[326596542,1715123434284,-1396.26445837,0.00015204,2]
[326596544,1715123434296,-239.96806082,0.00015205,2]
[326596546,1715123434306,-718.32745363,0.00015205,2]
[326596548,1715123434317,-527.04756068,0.00015205,2]
[326596550,1715123434327,-301.72481675,0.00015205,2]
[326596552,1715123434338,-730.94738095,0.00015205,2]
[326596555,1715123434349,-154.76784823,0.00015205,2]
[326596557,1715123434359,-1700.79338396,0.00015205,2]
[326596559,1715123434368,-500.0,0.00015205,2]
[326596561,1715123434378,-500.0,0.00015205,2]
[326596563,1715123434389,-1104.92,0.00015205,2]
[326596565,1715123434399,-500.0,0.00015205,2]
[326596567,1715123434409,-4021.41,0.00015205,2]
[326596569,1715123434419,-500.0,0.00015205,2]
[326596571,1715123434429,-4676.44,0.00015205,2]
[326596573,1715123434440,-500.0,0.00015205,2]
[326596575,1715123434450,-500.0,0.00015205,2]
[326596577,1715123434461,-361.72258076,0.00015206,2]
[326596579,1715123434471,-475.37263714,0.00015206,2]
[326596581,1715123434482,-191.40314855,0.00015206,2]
[326596583,1715123434492,-1893.19317664,0.00015206,2]
[326596585,1715123434504,-174.08442524,0.00015206,2]
[326596587,1715123434514,-500.0,0.00015206,2]
[326596589,1715123434524,-502.74411352,0.00015206,2]
[326596591,1715123434535,-500.0,0.00015206,2]
[326596593,1715123434545,-502.71845308,0.00015206,2]
[326596595,1715123434556,-504.02957092,0.00015206,2]
[326596597,1715123434566,-459.96887129,0.00015206,2]
[326596599,1715123434576,-500.0,0.00015206,2]
[326596601,1715123434586,-500.0,0.00015206,2]
[326596602,1715123434596,-500.0,0.00015206,2]
[326596605,1715123434607,-692.61,0.00015206,2]
[326596607,1715123434618,-303.27625357,0.00015206,2]
[326596609,1715123434629,-265.65784586,0.00015206,2]
[326596611,1715123434639,-500.0,0.00015206,2]
[326596612,1715123434649,-500.0,0.00015206,2]
[326596614,1715123434659,-500.0,0.00015206,2]
[326596616,1715123434669,-500.0,0.00015206,2]
[326596618,1715123434678,-500.0,0.00015206,2]
[326596620,1715123434688,-500.0,0.00015206,2]
[326596622,1715123434698,-523.11,0.00015206,2]
[326596624,1715123434708,-500.0,0.00015206,2]
[326596626,1715123434717,-503.02110952,0.00015206,2]
[326596628,1715123434727,-500.0,0.00015206,2]
[326596630,1715123434738,-500.0,0.00015206,2]
[326596632,1715123434751,-503.19263212,0.00015206,2]
[326596634,1715123434761,-1489.37,0.00015206,2]
[326596636,1715123434772,-400.54270402,0.00015206,2]
[326596638,1715123434782,-412.80292201,0.00015206,2]
[326596640,1715123434792,-493.63489455,0.00015206,2]
[326596643,1715123434806,-146.10510545,0.00015206,2]
[326596645,1715123434816,-756.87,0.00015206,2]
[326596647,1715123434826,-500.0,0.00015206,2]
[326596649,1715123434836,-576.53685125,0.00015206,2]
[326596650,1715123434846,-278.50793284,0.00015206,2]
[326596653,1715123434856,-500.0,0.00015206,2]
[326596654,1715123434865,-500.0,0.00015206,2]
[326596656,1715123434875,-373.79121196,0.00015206,2]
[326596658,1715123434885,-54.44040337,0.00015206,2]
[326597381,1715123443480,-412.80292201,0.00015206,2]
[326597387,1715123443493,-32.75667462,0.00015206,2]
[326597391,1715123443504,-500.0,0.00015206,2]
[326597395,1715123443514,-500.0,0.00015206,2]
[326597399,1715123443525,-255.31218186,0.00015206,2]
[326597402,1715123443535,-500.0,0.00015206,2]
[326597408,1715123443545,-500.0,0.00015206,2]
[326597411,1715123443555,-500.0,0.00015206,2]
[326597415,1715123443565,-1382.73,0.00015206,2]
[326597418,1715123443576,-530.88,0.00015206,2]
[326597422,1715123443586,-500.84800805,0.00015206,2]
[326597426,1715123443597,-591.26,0.00015206,2]
[326597429,1715123443607,-1452.66,0.00015206,2]
[326597433,1715123443618,-500.0,0.00015206,2]
[326597436,1715123443628,-500.0,0.00015206,2]
[326597440,1715123443638,-500.0,0.00015206,2]
[326597472,1715123443776,-500.0,0.00015206,2]
[326597475,1715123443831,-500.0,0.00015206,2]
[326597478,1715123443842,-2286.28,0.00015206,2]
[326597481,1715123443853,-2836.07,0.00015206,2]
[326597484,1715123443863,-411.33645221,0.00015206,2]
[326597487,1715123443873,-1586.81,0.00015206,2]
[326597490,1715123443884,-500.35,0.00015206,2]
[326597493,1715123443894,-500.0,0.00015206,2]
[326597496,1715123443904,-1027.79,0.00015206,2]
[326597499,1715123443914,-500.0,0.00015206,2]
[326597501,1715123443924,-2551.22,0.00015206,2]
[326597504,1715123443934,-500.0,0.00015206,2]
[326597506,1715123443945,-500.0,0.00015206,2]
[326597508,1715123443955,-2347.31,0.00015206,2]
[326597510,1715123443965,-509.58,0.00015206,2]
[326597512,1715123443978,-500.0,0.00015206,2]
[326597515,1715123443988,-500.0,0.00015206,2]
[326597517,1715123443998,-500.0,0.00015206,2]
[326597520,1715123444010,-500.0,0.00015206,2]
[326597523,1715123444019,-500.0,0.00015206,2]
[326597526,1715123444030,-500.0,0.00015206,2]
[326597528,1715123444040,-3855.23,0.00015206,2]
[326597530,1715123444050,-500.0,0.00015206,2]
[326597532,1715123444060,-500.07191376,0.00015206,2]
[326597533,1715123444069,-500.0,0.00015206,2]
[326597535,1715123444079,-500.0,0.00015206,2]
[326597537,1715123444090,-500.0,0.00015206,2]
[326597539,1715123444100,-500.0,0.00015206,2]
[326597541,1715123444109,-500.0,0.00015206,2]
[326597543,1715123444119,-591.32,0.00015206,2]
[326597544,1715123444128,-1045.83,0.00015206,2]
[326597546,1715123444138,-500.0,0.00015206,2]
[326597548,1715123444148,-500.0,0.00015206,2]
[326597550,1715123444158,-500.0,0.00015206,2]
[326597552,1715123444169,-1577.02,0.00015206,2]
[326597554,1715123444183,-516.37206186,0.00015206,2]
[326597556,1715123444193,-507.82771562,0.00015206,2]
[326597558,1715123444202,-1299.25,0.00015206,2]
[326597559,1715123444213,-500.0,0.00015206,2]
[326597561,1715123444222,-500.0,0.00015206,2]
[326597563,1715123444232,-323.82295741,0.00015206,2]
[326597565,1715123444242,-485.4362311,0.00015206,2]
[326597567,1715123444253,-15626.25,0.00015206,2]
[326597569,1715123444265,-500.0,0.00015206,2]
[326597571,1715123444275,-1162.41,0.00015206,2]
[326597573,1715123444286,-500.0,0.00015206,2]
[326597575,1715123444296,-500.0,0.00015206,2]
[326597577,1715123444306,-500.0,0.00015206,2]
[326597580,1715123444316,-812.02,0.00015206,2]
[326597581,1715123444326,-500.0,0.00015206,2]
[326597584,1715123444336,-500.0,0.00015206,2]
[326597586,1715123444345,-500.0,0.00015206,2]
[326597587,1715123444355,-633.2,0.00015206,2]
[326597589,1715123444365,-500.0,0.00015206,2]
[326597591,1715123444375,-500.0,0.00015206,2]
[326597593,1715123444386,-500.0,0.00015206,2]
[326597595,1715123444395,-500.0,0.00015206,2]
[326597597,1715123444406,-500.0,0.00015206,2]
[326597600,1715123444415,-500.0,0.00015206,2]
[326597602,1715123444425,-500.0,0.00015206,2]
[326597603,1715123444435,-500.0,0.00015206,2]
[326597606,1715123444446,-829.64,0.00015206,2]
[326597607,1715123444456,-500.0,0.00015206,2]
[326597609,1715123444465,-3072.78,0.00015206,2]
[326597611,1715123444475,-500.0,0.00015206,2]
[326597613,1715123444485,-2484.99,0.00015206,2]
[326597615,1715123444495,-1494.14,0.00015206,2]
[326597617,1715123444507,-668.82,0.00015206,2]
[326597620,1715123444517,-500.0,0.00015206,2]
[326597622,1715123444527,-4927.48,0.00015206,2]
[326597624,1715123444537,-500.0,0.00015206,2]
[326597625,1715123444547,-3011.64,0.00015206,2]
[326597627,1715123444556,-500.0,0.00015206,2]
[326597629,1715123444566,-500.0,0.00015206,2]
[326597631,1715123444575,-500.0,0.00015206,2]
[326597633,1715123444586,-500.0,0.00015206,2]
[326597635,1715123444595,-500.0,0.00015206,2]
[326597637,1715123444605,-505.31848335,0.00015206,2]
[326597639,1715123444615,-500.0,0.00015206,2]
[326597641,1715123444624,-500.0,0.00015206,2]
[326597643,1715123444634,-1398.51943807,0.00015207,2]
[326597645,1715123444643,-193.97227624,0.00015207,2]
[326597647,1715123444653,-31265.73505526,0.00015207,2]
[326597649,1715123444663,-500.0,0.00015208,2]
[326597651,1715123444673,-500.0,0.00015208,2]
[326597653,1715123444683,-500.0,0.00015208,2]
[326597655,1715123444692,-500.0,0.00015208,2]
[326597657,1715123444702,-500.0,0.00015208,2]
[326597659,1715123444712,-541.47096488,0.00015208,2]
[326597661,1715123444721,-500.0,0.00015208,2]
[326597663,1715123444731,-309.30495823,0.00015208,2]
[326597665,1715123444741,-500.0,0.00015208,2]
[326597666,1715123444751,-864.32,0.00015208,2]
[326597669,1715123444766,-500.0,0.00015208,2]
[326597671,1715123444776,-500.0,0.00015208,2]
[326597673,1715123444786,-500.0,0.00015208,2]
[326597675,1715123444796,-500.0,0.00015208,2]
[326597676,1715123444806,-500.0,0.00015208,2]
[326597678,1715123444815,-500.0,0.00015208,2]
[326597680,1715123444825,-502.0084024,0.00015208,2]
[326597682,1715123444835,-313.42466017,0.00015208,2]
[326597685,1715123444845,-1353.49,0.00015208,2]
[326597686,1715123444855,-500.0,0.00015208,2]
[326597688,1715123444865,-500.0,0.00015208,2]
[326597690,1715123444875,-610.4,0.00015208,2]
[326597693,1715123444886,-500.0,0.00015208,2]
[326597695,1715123444896,-500.0,0.00015309,2]
[326597697,1715123444906,-500.0,0.00015309,2]
[326597699,1715123444916,-500.0,0.00015309,2]
[326597701,1715123444925,-585.41723663,0.00015309,2]
[326597702,1715123444936,-500.0,0.00015309,2]
[326597704,1715123444945,-500.0,0.00015309,2]
[326597706,1715123444955,-151.14814863,0.00015309,2]
[326597708,1715123444965,-500.0,0.00015309,2]
[326597710,1715123444976,-842.88,0.00015309,2]
[326597712,1715123444985,-500.0,0.00015309,2]
[326597714,1715123444995,-502.57475793,0.00015309,2]
[326597716,1715123445005,-500.0,0.00015309,2]
[326597718,1715123445017,-619.57524388,0.00015309,2]
[326597719,1715123445026,-500.0,0.00015309,2]
[326597720,1715123445036,-500.0,0.00015309,2]
[326597721,1715123445046,-607.34,0.00015309,2]
[326597723,1715123445055,-500.0,0.00015309,2]
[326597725,1715123445065,-500.0,0.00015309,2]
[326597727,1715123445075,-500.0,0.00015309,2]
[326597729,1715123445085,-500.0,0.00015309,2]
[326597731,1715123445095,-500.0,0.00015309,2]
[326597733,1715123445105,-500.0,0.00015309,2]
[326597735,1715123445116,-500.0,0.00015309,2]
[326597737,1715123445126,-500.0,0.00015309,2]
[326597739,1715123445136,-500.0,0.00015309,2]
[326597741,1715123445146,-500.0,0.00015309,2]
[326597743,1715123445157,-251.27224433,0.00015309,2]
[326597745,1715123445172,-439.13162946,0.0001531,2]
[326597747,1715123445182,-500.0,0.0001531,2]
[326597749,1715123445192,-500.0,0.0001531,2]
[326597751,1715123445202,-500.0,0.0001531,2]
[326597753,1715123445214,-1104.92,0.00015479,2]
[326597755,1715123445224,-500.0,0.00015479,2]
[326597757,1715123445234,-4021.41,0.00015479,2]
[326597759,1715123445244,-4676.44,0.00015479,2]
[326597761,1715123445255,-500.0,0.00015479,2]
[326597763,1715123445266,-500.0,0.00015479,2]
[326597765,1715123445276,-500.0,0.0001548,2]
[326597767,1715123445287,-500.0,0.0001548,2]
[326597769,1715123445297,-500.0,0.0001548,2]
[326597771,1715123445307,-692.61,0.0001548,2]
[326597773,1715123445318,-500.0,0.0001548,2]
[326597795,1715123445533,-500.0,0.0001548,2]
[326597797,1715123445543,-500.0,0.0001548,2]
[326597799,1715123445553,-523.11,0.0001548,2]
[326597801,1715123445563,-500.0,0.0001548,2]
[326597803,1715123445574,-500.0,0.0001548,2]
[326597805,1715123445584,-1489.37,0.0001548,2]
[326597807,1715123445594,-639.74,0.0001548,2]
[326597809,1715123445604,-756.87,0.0001548,2]
[326597811,1715123445614,-500.0,0.0001548,2]
[326597813,1715123445624,-500.0,0.0001548,2]
[326597815,1715123445634,-511.11491914,0.0001548,2]
[326597817,1715123445644,-500.0,0.0001548,2]
[326597819,1715123445654,-500.0,0.0001548,2]
[326597821,1715123445664,-500.0,0.0001548,2]
[326597823,1715123445674,-1382.73,0.0001548,2]
[326597825,1715123445683,-530.88,0.0001548,2]
[326597827,1715123445693,-591.26,0.0001548,2]
[326597829,1715123445703,-1452.66,0.0001548,2]
[326597831,1715123445712,-500.0,0.0001548,2]
[326597833,1715123445723,-500.0,0.0001548,2]
[326597835,1715123445733,-370.87043588,0.0001548,2]
[326597837,1715123445743,-2286.28,0.0001548,2]
[326597839,1715123445754,-2836.07,0.0001548,2]
[326597841,1715123445766,-1586.81,0.0001548,2]
[326597843,1715123445777,-500.35,0.0001548,2]
[326597845,1715123445787,-500.0,0.0001548,2]
[326597847,1715123445798,-1027.79,0.0001548,2]
[326597849,1715123445808,-2551.22,0.0001548,2]
[326597851,1715123445818,-500.0,0.0001548,2]
[326597853,1715123445828,-500.0,0.0001548,2]
[326597855,1715123445838,-2347.31,0.0001548,2]
[326597857,1715123445847,-522.46,0.0001548,2]
[326597859,1715123445858,-500.0,0.0001548,2]
[326597861,1715123445868,-500.0,0.0001548,2]
[326597863,1715123445877,-500.0,0.0001548,2]
[326597865,1715123445887,-3855.23,0.0001548,2]
[326597867,1715123445897,-500.0,0.0001548,2]
[326597869,1715123445907,-500.0,0.0001548,2]
[326597871,1715123445917,-500.0,0.0001548,2]
[326597873,1715123445927,-500.0,0.0001548,2]
[326597874,1715123445936,-500.0,0.0001548,2]
[326597876,1715123445946,-500.0,0.0001548,2]
[326597895,1715123446148,-591.32,0.0001548,2]
[326597897,1715123446158,-1045.83,0.0001548,2]
[326597899,1715123446170,-500.0,0.0001548,2]
[326597901,1715123446183,-1577.02,0.0001548,2]
[326597903,1715123446194,-1299.25,0.0001548,2]
[326597905,1715123446204,-500.0,0.0001548,2]
[326597907,1715123446214,-500.0,0.0001548,2]
[326597909,1715123446224,-15626.25,0.0001548,2]
[326597911,1715123446234,-500.0,0.0001548,2]
[326597914,1715123446247,-1162.41,0.0001548,2]
[326597916,1715123446261,-500.0,0.0001548,2]
[326597918,1715123446271,-500.0,0.0001548,2]
[326597920,1715123446281,-812.02,0.0001548,2]
[326597922,1715123446290,-500.0,0.0001548,2]
[326597924,1715123446300,-500.0,0.0001548,2]
[326597926,1715123446310,-500.0,0.0001548,2]
[326597928,1715123446319,-633.2,0.0001548,2]
[326597930,1715123446329,-500.0,0.0001548,2]
[326597932,1715123446339,-500.0,0.0001548,2]
[326597934,1715123446349,-500.0,0.0001548,2]
[326597936,1715123446359,-829.64,0.0001548,2]
[326597938,1715123446368,-3072.78,0.0001548,2]
[326597940,1715123446378,-2484.99,0.0001548,2]
[326597941,1715123446387,-1494.14,0.0001548,2]
[326597943,1715123446396,-668.82,0.0001548,2]
[326597945,1715123446406,-4927.48,0.0001548,2]
[326597948,1715123446416,-500.0,0.0001548,2]
[326597949,1715123446426,-3011.64,0.0001548,2]
[326597951,1715123446435,-500.0,0.0001548,2]
[326597954,1715123446445,-500.0,0.0001548,2]
[326597956,1715123446455,-500.0,0.0001548,2]
[326597957,1715123446464,-500.0,0.0001548,2]
[326597959,1715123446473,-500.0,0.00015482,2]
[326597961,1715123446483,-500.0,0.00015482,2]
[326597963,1715123446492,-500.0,0.00015482,2]
[326597965,1715123446503,-501.71709557,0.00015482,2]
[326597967,1715123446514,-500.0,0.00015482,2]
[326597969,1715123446524,-500.0,0.00015482,2]
[326597971,1715123446534,-864.32,0.00015482,2]
[326597973,1715123446543,-500.0,0.00015482,2]
[326597975,1715123446554,-500.0,0.00015482,2]
[326597977,1715123446564,-1353.49,0.00015482,2]
[326597979,1715123446573,-500.0,0.00015482,2]
[326597981,1715123446583,-610.4,0.00015482,2]
[326597983,1715123446592,-500.0,0.00015482,2]
[326597985,1715123446602,-151.0,0.00015582,2]
[326597987,1715123446612,-151.0,0.00015582,2]
[326597989,1715123446622,-151.0,0.00015582,2]
[326597991,1715123446632,-151.0,0.00015582,2]
[326597993,1715123446641,-372.458745,0.00015582,2]
[326597995,1715123446651,-372.458745,0.00015582,2]
[326597997,1715123446661,-167.85937445,0.00015583,5]
[326597999,1715123446670,-238.06251192,0.00015583,2]
[326598001,1715123446680,-152.00823154,0.00015583,2]
[326598003,1715123446690,-842.88,0.00015583,2]
[326598005,1715123446700,-569.66332142,0.00015583,2]
[326598007,1715123446710,-500.0,0.00015583,2]
[326598009,1715123446719,-607.34,0.00015583,2]
[326598011,1715123446729,-500.0,0.00015583,2]
[326598013,1715123446738,-500.0,0.00015583,2]
[326598015,1715123446747,-500.0,0.00015583,2]
[326598017,1715123446758,-500.0,0.00015583,2]
[326598019,1715123446767,-506.547353,0.00015583,2]
[326598021,1715123446777,-500.0,0.00015583,2]
[326598023,1715123446786,-500.0,0.00015583,2]
[326598025,1715123446795,-500.0,0.00015583,2]
[326598027,1715123446805,-500.0,0.00015583,2]
[326598029,1715123446815,-500.0,0.00015584,2]
[326598031,1715123446824,-151.0,0.00015584,2]
[326598033,1715123446834,-500.0,0.00015753,2]
[326598035,1715123446843,-1104.92,0.00015753,2]
[326598037,1715123446853,-4021.41,0.00015753,2]
[326598039,1715123446863,-4676.44,0.00015753,2]
[326598041,1715123446872,-500.0,0.00015753,2]
[326598043,1715123446881,-500.0,0.00015753,2]
[326598045,1715123446891,-500.0,0.00015754,2]
[326598047,1715123446901,-500.0,0.00015754,2]
[326598049,1715123446910,-500.0,0.00015754,2]
[326598051,1715123446919,-692.61,0.00015754,2]
[326598053,1715123446929,-500.0,0.00015754,2]
[326598055,1715123446938,-500.0,0.00015754,2]
[326598057,1715123446948,-163.2776245,0.00015754,2]
[326598060,1715123446965,-523.11,0.00015754,2]
[326598062,1715123446980,-500.0,0.00015754,2]
[326598064,1715123446991,-500.0,0.00015754,2]
[326598066,1715123447002,-1489.37,0.00015754,2]
[326598068,1715123447012,-639.74,0.00015754,2]
[326598070,1715123447022,-756.87,0.00015754,2]
[326598072,1715123447032,-500.0,0.00015754,2]
[326598074,1715123447043,-500.0,0.00015754,2]
[326598076,1715123447052,-500.0,0.00015754,2]
[326598078,1715123447062,-500.0,0.00015754,2]
[326598080,1715123447072,-151.0,0.00015754,2]
[326598082,1715123447082,-1382.73,0.00015754,2]
[326598084,1715123447092,-151.0,0.00015754,2]
[326598086,1715123447101,-151.0,0.00015754,2]
[326598087,1715123447111,-530.88,0.00015754,2]
[326598089,1715123447121,-591.26,0.00015754,2]
[326598092,1715123447131,-1452.66,0.00015754,2]
[326598094,1715123447142,-500.0,0.00015754,2]
[326598096,1715123447152,-2286.28,0.00015754,2]
[326598098,1715123447164,-2836.07,0.00015754,2]
[326598100,1715123447177,-1586.81,0.00015754,2]
[326598102,1715123447190,-500.35,0.00015754,2]
[326598104,1715123447202,-500.0,0.00015754,2]
[326598105,1715123447223,-1027.79,0.00015754,2]
[326598108,1715123447233,-2551.22,0.00015754,2]
[326598110,1715123447242,-500.0,0.00015754,2]
[326598112,1715123447252,-500.0,0.00015754,2]
[326598114,1715123447266,-2347.31,0.00015754,2]
[326598116,1715123447276,-500.0,0.00015754,2]
[326598118,1715123447287,-500.0,0.00015754,2]
[326598125,1715123447296,-500.0,0.00015754,2]
[326598133,1715123447308,-3855.23,0.00015754,2]
[326598138,1715123447319,-500.0,0.00015754,2]
[326598144,1715123447329,-500.0,0.00015754,2]
[326598152,1715123447340,-432.39664514,0.00015754,2]
[326598156,1715123447351,-500.0,0.00015754,2]
[326598159,1715123447362,-591.32,0.00015754,2]
[326598162,1715123447373,-1045.83,0.00015754,2]
[326598165,1715123447384,-500.0,0.00015754,2]
[326598168,1715123447394,-1577.02,0.00015754,2]
[326598171,1715123447405,-1299.25,0.00015754,2]
[326598175,1715123447416,-1033.46275754,0.00015754,2]
[326598180,1715123447439,-1244.55942779,0.00015754,2]
[326598468,1715123450507,-13348.22781467,0.00015754,2]
[326598471,1715123450519,-500.0,0.00015754,2]
[326598473,1715123450529,-1162.41,0.00015754,2]
[326598475,1715123450539,-500.0,0.00015754,2]
[326598477,1715123450549,-812.02,0.00015754,2]
[326598479,1715123450559,-372.458745,0.00015754,2]
[326598481,1715123450570,-500.0,0.00015754,2]
[326598483,1715123450580,-372.458745,0.00015754,2]
[326598485,1715123450591,-633.2,0.00015754,2]
[326598487,1715123450602,-388.65361956,0.00015754,2]
[326598489,1715123450613,-500.0,0.00015754,2]
[326598491,1715123450623,-500.0,0.00015754,2]
[326598493,1715123450633,-829.64,0.00015754,2]
[326598495,1715123450643,-3072.78,0.00015754,2]
[326598497,1715123450654,-2484.99,0.00015754,2]
[326598499,1715123450664,-1494.14,0.00015754,2]
[326598501,1715123450674,-668.82,0.00015754,2]
[326598503,1715123450685,-4927.48,0.00015754,2]
[326598505,1715123450695,-500.0,0.00015754,2]
[326598507,1715123450706,-3011.64,0.00015754,2]
[326598509,1715123450716,-500.0,0.00015754,2]
[326598511,1715123450727,-500.0,0.00015754,2]
[326598513,1715123450738,-500.0,0.00015754,2]
[326598515,1715123450748,-204.84727048,0.00015754,2]
[326598517,1715123450758,-195.975206,0.00015756,2]
[326598519,1715123450769,-500.0,0.00015756,2]
[326598521,1715123450779,-500.0,0.00015756,2]
[326598523,1715123450788,-500.0,0.00015756,2]
[326598525,1715123450798,-151.213274,0.00015756,2]
[326598527,1715123450807,-500.0,0.00015756,2]
[326598529,1715123450817,-500.0,0.00015756,2]
[326598531,1715123450827,-864.32,0.00015756,2]
[326598533,1715123450837,-500.0,0.00015756,2]
[326598535,1715123450846,-500.0,0.00015756,2]
[326598537,1715123450856,-1353.49,0.00015756,2]
[326598539,1715123450866,-610.4,0.00015756,2]
[326598541,1715123450875,-500.0,0.00015756,2]
[326598543,1715123450885,-493.95187292,0.0001576,2]
[326598545,1715123450895,-153.0,0.000158,2]
[326598547,1715123450904,-307.4028549,0.000158,2]
[326598565,1715123451071,-153.0,0.000158,2]
[326598567,1715123451081,-306.0,0.000158,2]
[326598569,1715123451091,-153.0,0.000158,2]
[326598571,1715123451102,-372.458745,0.0001583,2]
[326598573,1715123451112,-372.458745,0.0001583,2]
[326598575,1715123451122,-55555.0,0.0001583,2]
[326598577,1715123451132,-151.0,0.00015856,2]
[326598579,1715123451142,-842.88,0.00015857,2]
[326598581,1715123451151,-607.34,0.00015857,2]
[326598583,1715123451161,-209.15032662,0.00015857,2]
[326598584,1715123451171,-500.0,0.00015857,2]
[326598586,1715123451185,-500.0,0.00015857,2]
[326598588,1715123451195,-500.0,0.00015857,2]
[326598590,1715123451204,-500.0,0.00015857,2]
[326598592,1715123451214,-500.0,0.00015857,2]
[326598594,1715123451223,-500.0,0.00015857,2]
[326598597,1715123451234,-153.0,0.00015863,2]
[326598599,1715123451243,-153.0,0.00015863,2]
[326598601,1715123451255,-175.34782,0.0001589,2]
[326598603,1715123451267,-166.222174,0.0001589,2]
[326598605,1715123451276,-186.98747,0.0001589,2]
[326598607,1715123451286,-165.941014,0.0001589,2]
[326598609,1715123451298,-151.0,0.0001593,2]
[326598611,1715123451307,-488.60277858,0.00016,2]
[326598613,1715123451317,-500.0,0.00016027,2]
[326598615,1715123451327,-1104.92,0.00016027,2]
[326598617,1715123451336,-4021.41,0.00016027,2]
[326598619,1715123451346,-4676.44,0.00016027,2]
[326598621,1715123451355,-500.0,0.00016027,2]
[326598622,1715123451364,-500.0,0.00016027,2]
[326598624,1715123451374,-315.1824582,0.00016027,2]
[326598626,1715123451384,-500.0,0.00016028,2]
[326598628,1715123451392,-500.0,0.00016028,2]
[326598630,1715123451402,-692.61,0.00016028,2]
[326598632,1715123451412,-500.0,0.00016028,2]
[326598634,1715123451421,-500.0,0.00016028,2]
[326598636,1715123451431,-523.11,0.00016028,2]
[326598638,1715123451440,-500.0,0.00016028,2]
[326598640,1715123451450,-500.0,0.00016028,2]
[326598642,1715123451459,-1489.37,0.00016028,2]
[326598644,1715123451468,-639.74,0.00016028,2]
[326598646,1715123451477,-756.87,0.00016028,2]
[326598648,1715123451487,-500.0,0.00016028,2]
[326598650,1715123451496,-500.0,0.00016028,2]
[326598652,1715123451506,-500.0,0.00016028,2]
[326598655,1715123451517,-500.0,0.00016028,2]
[326598656,1715123451526,-1382.73,0.00016028,2]
[326598658,1715123451536,-591.26,0.00016028,2]
[326598660,1715123451545,-1452.66,0.00016028,2]
[326598662,1715123451555,-500.0,0.00016028,2]
[326598665,1715123451565,-2286.28,0.00016028,2]
[326598667,1715123451576,-2836.07,0.00016028,2]